[Event "1000GM Memorial Day NY IM-C 2023"]
[Site "New York"]
[Date "2023.05.28"]
[Round "5.4"]
[White "Poliannikov, Danila"]
[Black "Moor, Nathaniel Philip"]
[Result "1-0"]
[ECO "C88"]
[WhiteElo "2278"]
[BlackElo "2185"]
[Annotator "TA"]
[PlyCount "51"]
[EventDate "2023.05.23"]
[EventType "tourn"]
[EventCountry "USA"]
[SourceTitle "playchess.com"]
[Source "ChessBase"]
[SourceQuality "1"]
[TimeControl "5400+30"]

{[%evp 19,51,26,29,27,75,72,76,74,104,64,52,51,59,58,72,50,53,57,60,57,217,224,389,357,615,606,819,778,954,956,929,936,1268,1258]} 1. e4 {[%emt 0:00:02]} e5 {[%emt 0:00:05]} 2. Nf3 {[%emt 0:00:03]} Nc6 {[%emt 0:00:03]} 3. Bb5 {[%emt 0:00:05]} a6 {[%emt 0:00:03]} 4. Ba4 {[%emt 0:00:05]} Nf6 {[%emt 0:00:05]} 5. O-O {[%emt 0:00:05]} Be7 {[%emt 0:00:03]} 6. Re1 {[%emt 0:00:03]} b5 {[%emt 0:00:05]} 7. Bb3 {[%emt 0:00:03]} O-O {[%emt 0:00:05]} 8. a4 {[%emt 0:00:55]} Bb7 {[%emt 0:00:07]} 9. d3 {[%emt 0:00:06]} d6 {[%emt 0:00:09]} 10. Bd2 {[%emt 0:00:59]} Nd7 {[%emt 0:02:40]} 11. Nc3 {[%emt 0:04:32] C88: Closed Ruy Lopez: Anti-Marshall Systems.} b4 {[%emt 1:32:35]} (11... Nd4 $11 {deserves consideration.}) 12. Nd5 $16 {[%emt 0:01:10]} Na5 {[%emt 0:00:00]} 13. Ba2 {[%emt 0:02:32] White has more active pieces. The black rooks are badly placed. White is better.} (13. Nxb4 Nxb3 14. cxb3 c5 $11) 13... c5 {[%emt 0:00:00]} 14. c3 {[%emt 0:02:15]} bxc3 {[%emt 0:00:00] [#]} 15. Bxc3 $146 {[%emt 0:01:29]} ({Predecessor:} 15. bxc3 Nc6 16. Be3 Nf6 17. Nxf6+ Bxf6 18. Bd5 Rb8 19. Rb1 Qc7 20. Qc2 Ba8 21. Nd2 Na5 22. Rxb8 Rxb8 23. Bxa8 Rxa8 24. Rb1 Rb8 25. h3 Bd8 {½-½ Liebert,H-Csulits,A DDR-ch16 Final 1967 (14)}) 15... Bxd5 {[%emt 0:00:00]} 16. Bxd5 {[%emt 0:03:52]} Rb8 {[%emt 0:00:00]} 17. Rb1 {[%emt 0:01:50]} Nf6 {[%emt 0:00:00]} 18. b4 {[%emt 0:03:03]} cxb4 {[%emt 0:00:00]} 19. Bxb4 {[%emt 0:00:19] This pair of bishops is nice.} Qb6 $2 {[%emt 0:00:00] Black cannot hold the game after this.} (19... Nxd5 $14 20. exd5 f5) 20. Nxe5 $18 {[%emt 0:13:45][%mdl 64] [#] Bxf7+ would be deadly. Pin} Nxd5 {[%emt 0:00:00]} (20... Qa7) 21. exd5 {[%emt 0:03:41] Black must now prevent Nd7.} (21. Nd7 Qc7 22. Bxa5 (22. exd5 Qxd7 23. Bxa5 Bf6 $14) 22... Qxd7 $14) 21... Bh4 $2 {[%emt 0:00:00]} (21... Rb7 22. Qc2 Bd8) 22. g3 {[%emt 0:02:29] Nd7 is the strong threat. White is clearly winning.} dxe5 {[%emt 0:00:00]} 23. Bxf8 {[%emt 0:00:21][%mdl 64] Discovered Attack} ({Less strong is} 23. gxh4 Qg6+ 24. Kf1 Rxb4 25. Rxb4 Qd6 $18) 23... Nb3 {[%emt 0:00:00]} 24. Ba3 {[%emt 0:02:59]} Bf6 {[%emt 0:00:00]} 25. Re2 {[%emt 0:00:28]} e4 {[%emt 0:00:00]} 26. Rxe4 {[%emt 0:00:20] Weighted Error Value: White=0.04 (flawless) /Black=0.69} 1-0

[Event "1000GM Memorial Day NY IM-C 2023"]
[Site "New York"]
[Date "2023.05.28"]
[Round "5.5"]
[White "Nemeth, Miklos"]
[Black "Mou, Iris"]
[Result "1-0"]
[ECO "B11"]
[WhiteElo "2452"]
[BlackElo "2002"]
[Annotator "TA"]
[PlyCount "77"]
[EventDate "2023.05.23"]
[EventType "tourn"]
[EventCountry "USA"]
[SourceTitle "playchess.com"]
[Source "ChessBase"]
[SourceQuality "1"]
[TimeControl "5400+30"]

{[%evp 9,77,-27,-5,-7,-6,-23,10,-5,24,-9,16,7,83,22,90,87,89,93,95,57,66,52,116,125,149,165,187,184,212,207,356,296,293,291,481,463,470,462,774,808,645,405,426,384,461,445,456,480,463,443,1144,976,1447,1328,1071,1033,1194,1416,1238,1372,1239,1075,1032,783,745,698,6423,2606,1791,1806]} 1. e4 {[%emt 0:00:33]} c6 {[%emt 0:00:08]} 2. Nc3 {[%emt 0:00:12]} d5 {[%emt 0:00:08]} 3. Qe2 {[%emt 0:00:08]} d4 {[%emt 0:04:20]} 4. Nd1 {[%emt 0:00:06]} c5 {[%emt 0:03:48]} 5. f4 {[%emt 0:02:20]} Nc6 {[%emt 0:04:15]} 6. Nf3 {[%emt 0:00:18] Prevents e5. B11: Caro-Kann: Two Knights Variation.} Nf6 {[%emt 0:06:24][%cal Oe7e5]} 7. d3 {[%emt 0:03:10]} g6 {[%emt 0:05:26][%cal Oe7e5]} (7... e5 $5) 8. g3 {[%emt 0:03:09] The position is equal.} Bg7 {[%emt 0:02:29][%cal Oe7e5]} (8... e5 $5) 9. Bg2 {[%emt 0:00:15]} O-O {[%emt 0:02:34][%cal Oe7e5]} (9... e5 $5) 10. O-O {[%emt 0:01:12] [#]} e6 $146 {[%emt 0:04:47] [#]} (10... e5 $11) ({Predecessor:} 10... b5 11. Nf2 Qb6 12. Nh4 Bb7 13. e5 Ne8 14. Ne4 Nb4 15. Rf2 f5 16. exf6 exf6 17. Nxc5 Bxg2 {1-0 Bauer,T (2214)-Kjartansson,G (2460) EU-ch Blitz Katowice 2021 (21)}) 11. Nf2 {[%emt 0:01:26]} (11. e5 $1 $16 {[%cal Re5f6]} Nd5 12. Nf2) 11... Bd7 {[%emt 0:05:19]} (11... e5 $1 $11 {remains equal.}) 12. e5 $16 {[%emt 0:02:27]} Nd5 {[%emt 0:02:46]} 13. Ne4 {[%emt 0:00:40]} b6 {[%emt 0:02:23]} 14. c4 {[%emt 0:02:05]} dxc3 {[%emt 0:03:18]} 15. bxc3 {[%emt 0:00:10]} Qc7 {[%emt 0:04:10] White leaves nothing to chance now.} (15... f5 $1 $14 16. exf6 Nxf6) 16. Bb2 {[%emt 0:02:12]} Bc8 {[%emt 0:04:01]} 17. h4 {[%emt 0:04:18][%cal Bh2h4,Bh4h5][%mdl 32] White is more active.} Ba6 {[%emt 0:07:37] [#]} 18. h5 $1 {[%emt 0:02:39][%mdl 512]} c4 {[%emt 0:05:30]} (18... Rad8 19. hxg6) 19. d4 {[%emt 0:00:09]} ({Inferior is} 19. dxc4 Na5 $11) 19... b5 {[%emt 0:01:56]} (19... Nce7 {was necessary.} 20. hxg6 fxg6) 20. hxg6 {[%emt 0:00:47]} hxg6 {[%emt 0:01:20]} 21. Nfg5 {[%emt 0:05:08]} Qe7 $2 {[%emt 0:07:23]} (21... Bh6 22. Qg4 Kg7) 22. Qg4 {[%emt 0:01:59] Qh4 would be deadly.} Bh6 {[%emt 0:05:55]} 23. Nf6+ {[%emt 0:00:52]} Kg7 {[%emt 0:00:53]} (23... Nxf6 $142 24. exf6 Qxf6 25. Bxc6 Rac8) 24. Bxd5 $18 {[%emt 0:01:00]} exd5 {[%emt 0:00:12]} 25. Nxd5 {[%emt 0:00:57]} Qd8 {[%emt 0:01:24]} 26. Nf6 {[%emt 0:00:18] Hoping for f5. Excellent horsemanship.} Bc8 {[%emt 0:02:08] Wards off f5} 27. Qf3 {[%emt 0:01:34] White is clearly winning.} Bb7 {[%emt 0:01:46]} 28. Nge4 {[%emt 0:04:32]} Ne7 {[%emt 0:02:32]} 29. g4 {[%emt 0:00:25]} g5 {[%emt 0:02:13]} (29... a5 $142 30. Kf2 Rh8) 30. Ba3 {[%emt 0:03:19]} a5 {[%emt 0:03:20]} 31. Bxe7 {[%emt 0:02:10]} Qxe7 {[%emt 0:00:07]} 32. fxg5 {[%emt 0:00:07]} Bxg5 {[%emt 0:00:41]} 33. Qf5 {[%emt 0:00:05][%csl Gf6][%cal Rf5h7]} Be3+ {[%emt 0:01:37]} 34. Kg2 {[%emt 0:00:04][%csl Gf6][%cal Rf5h7]} Rh8 {[%emt 0:00:39] Repels Qh7+} 35. Rh1 {[%emt 0:00:36]} Qe6 {[%emt 0:01:34]} 36. Kf3 {[%emt 0:03:23]} Qxf5+ {[%emt 0:02:20]} 37. gxf5 {[%emt 0:00:06]} Bh6 {[%emt 0:00:29]} 38. d5 {[%emt 0:00:29] White threatens Rag1+ and mate.} Kf8 {[%emt 0:00:54]} 39. Rag1 {[%emt 0:00:32] Ingenious play by Nemeth!   Weighted Error Value: White=0.29 (precise) /Black=0.49} 1-0

[Event "1000GM Memorial Day NY IM-C 2023"]
[Site "New York"]
[Date "2023.05.28"]
[Round "6.1"]
[White "Sazci, Bilgen"]
[Black "Mou, Iris"]
[Result "0-1"]
[ECO "D00"]
[WhiteElo "1827"]
[BlackElo "2002"]
[Annotator "RC"]
[PlyCount "80"]
[EventDate "2023.05.23"]
[EventType "tourn"]
[EventCountry "USA"]
[SourceTitle "playchess.com"]
[Source "ChessBase"]
[SourceQuality "1"]
[TimeControl "5400+30"]

1. d4 {[%emt 0:00:04]} Nf6 {[%emt 0:00:07]} 2. Nc3 {[%emt 0:00:07]} d5 {[%emt 0:01:31]} 3. Bf4 {[%emt 0:00:19]} a6 {[%emt 0:00:16]} 4. e3 {[%emt 0:00:09]} e6 {[%emt 0:02:40]} 5. Nf3 {[%emt 0:00:51]} b5 {[%emt 0:01:26]} 6. a3 {[%emt 0:01:55]} Bb7 {[%emt 0:02:18]} 7. b4 {[%emt 0:07:39]} Nbd7 {[%emt 0:07:42]} 8. Bd3 {[%emt 0:01:20]} Be7 {[%emt 0:10:04]} 9. O-O {[%emt 0:00:34]} Nh5 {[%emt 0:05:50]} 10. Ne2 {[%emt 0:02:23]} Nxf4 {[%emt 0:03:45]} 11. exf4 {[%emt 0:00:30]} Nb6 {[%emt 0:01:53]} 12. c3 {[%emt 0:00:54]} Nc4 {[%emt 0:02:29]} 13. Qc2 {[%emt 0:01:18]} f5 {[%emt 0:05:09]} 14. Ne5 {[%emt 0:02:41]} a5 {[%emt 0:03:25]} 15. Kh1 {[%emt 0:05:35]} Qd6 {[%emt 0:04:05]} 16. Ng1 {[%emt 0:03:55]} Qa6 {[%emt 0:04:34]} 17. Qe2 {[%emt 0:10:52]} g6 {[%emt 0:06:36]} 18. a4 {[%emt 0:02:46]} axb4 {[%emt 0:09:34]} 19. axb5 {[%emt 0:01:57]} Qd6 {[%emt 0:02:20]} 20. Rxa8+ {[%emt 0:03:33]} Bxa8 {[%emt 0:00:06]} 21. cxb4 {[%emt 0:01:41]} Nxe5 {[%emt 0:01:28]} 22. fxe5 {[%emt 0:01:56]} Qxb4 {[%emt 0:00:28]} 23. Rc1 {[%emt 0:00:50]} Qxd4 {[%emt 0:03:49]} 24. Rxc7 {[%emt 0:03:45]} Kf7 {[%emt 0:00:45]} 25. Nf3 {[%emt 0:02:47]} Qa1+ {[%emt 0:04:11]} 26. Qf1 {[%emt 0:00:35]} Qxf1+ {[%emt 0:00:09]} 27. Bxf1 {[%emt 0:00:05]} h6 {[%emt 0:01:51]} 28. Nd4 {[%emt 0:01:03]} Rb8 {[%emt 0:01:24]} 29. Ra7 {[%emt 0:05:29]} Bb7 {[%emt 0:02:50]} 30. Nb3 {[%emt 0:02:22]} d4 {[%emt 0:03:24]} 31. Bc4 {[%emt 0:07:13]} Rc8 {[%emt 0:02:31]} 32. Na5 {[%emt 0:02:48]} Bd5 {[%emt 0:02:16]} 33. b6 {[%emt 0:03:20]} d3 {[%emt 0:01:39]} 34. Rc7 {[%emt 0:02:01]} d2 {[%emt 0:02:26]} 35. Be2 {[%emt 0:00:06]} Ra8 {[%emt 0:00:27]} 36. Ra7 {[%emt 0:00:56]} Rc8 {[%emt 0:00:15]} 37. Rc7 {[%emt 0:00:08]} Ra8 {[%emt 0:00:02]} 38. Ra7 {[%emt 0:00:05]} Rxa7 {[%emt 0:00:14]} 39. bxa7 {[%emt 0:00:06]} Bc5 {[%emt 0:00:09]} 40. Nc4 {[%emt 0:00:27]} Bxc4 {[%emt 0:00:55]} 0-1

[Event "1000GM Memorial Day NY IM-C 2023"]
[Site "New York"]
[Date "2023.05.28"]
[Round "6.2"]
[White "Moor, Nathaniel Philip"]
[Black "Nemeth, Miklos"]
[Result "0-1"]
[ECO "D37"]
[WhiteElo "2185"]
[BlackElo "2452"]
[Annotator "TA"]
[PlyCount "128"]
[EventDate "2023.05.23"]
[EventType "tourn"]
[EventCountry "USA"]
[SourceTitle "playchess.com"]
[Source "ChessBase"]
[SourceQuality "1"]
[TimeControl "5400+30"]

{[%evp 17,128,0,16,-6,24,27,37,0,0,-12,-9,-10,-9,0,0,-7,0,0,9,-10,28,0,0,-6,-1,-58,-62,-59,-49,-100,-40,-47,-43,-47,-33,-45,-36,-44,-43,-36,-40,-60,-37,-37,-10,-10,-10,-50,-39,-56,-51,-49,-31,-72,-72,-75,-73,-268,-283,-282,-279,-274,-282,-281,-268,-264,-279,-276,-271,-237,-133,-134,-73,-70,-69,-350,-251,-258,-251,-424,-424,-3627,-3526,-2895,-2672,-2702,-2217,-29954,-29954,-29955,-29956,-29954,-29960,-29956,-29956,-12517,-11526,-29961,-29962,-29960,-250,-29961,-29958,-29963,-29963,-29967,-29964,-29969,-29970,-29967,-29968,-29977,-29979]} 1. Nf3 {[%emt 0:00:01]} d5 {[%emt 0:02:46]} 2. d4 {[%emt 0:00:08]} Nf6 {[%emt 0:00:13]} 3. c4 {[%emt 0:00:14]} e6 {[%emt 0:00:05]} 4. Nc3 {[%emt 0:00:06]} Be7 {[%emt 0:00:13]} 5. Bf4 {[%emt 0:00:20]} O-O {[%emt 0:00:20]} 6. e3 {[%emt 0:00:13]} b6 {[%emt 0:00:24]} 7. cxd5 {[%emt 0:03:07]} Nxd5 {[%emt 0:01:18]} 8. Nxd5 {[%emt 0:00:40]} exd5 {[%emt 0:00:07]} 9. Bd3 {[%emt 0:01:38]} c5 {[%emt 0:04:35]} 10. h4 {[%emt 0:05:03] [#] D37: Queen's Gambit Declined: 5 Bf4.} f5 $146 {[%emt 0:15:23]} ({Predecessor:} 10... Nc6 11. Rc1 f5 12. b3 a6 13. O-O Be6 14. Bg5 h6 {1-0 Bacrot,E (2669)-Bacrot,A (2250) Marseille Christmas blitz 2019 (7)}) 11. Ne5 {[%emt 0:05:14]} Bf6 {[%emt 0:08:04]} 12. Qh5 {[%emt 0:11:52] White is slightly better.} (12. Qf3 {simplifies} cxd4 13. exd4 Bxe5 14. dxe5 Nc6 15. O-O) 12... Bxe5 {[%emt 0:02:28]} 13. Bxe5 {[%emt 0:01:07][%cal Og2g4]} Nc6 {[%emt 0:00:07]} 14. O-O {[%emt 0:11:25]} Nxe5 {[%emt 0:05:47]} 15. dxe5 {[%emt 0:00:02]} Be6 {[%emt 0:00:15]} 16. Rfd1 {[%emt 0:04:21]} Qc7 {[%emt 0:02:02]} 17. f4 {[%emt 0:01:39][%cal Og2g4]} Rad8 {[%emt 0:00:17]} 18. Rac1 {[%emt 0:01:10]} a5 {[%emt 0:07:22]} 19. g4 {[%emt 0:07:42][%cal Rg4f5]} Qd7 {[%emt 0:04:57]} (19... fxg4 $2 20. Bxh7+ Kh8 21. Bg6+ Kg8 22. Qh7#) 20. gxf5 {[%emt 0:08:17]} Bxf5 {[%emt 0:00:30]} 21. Bxf5 {[%emt 0:02:53]} (21. Qg5 $11) 21... Rxf5 $15 {[%emt 0:00:07]} 22. Qg4 {[%emt 0:00:56] e4 would be deadly.} Qf7 {[%emt 0:00:45]} 23. Rc2 {[%emt 0:03:19]} (23. Rf1 $15) 23... d4 {[%emt 0:06:45]} (23... Rf8 $1 $17 {[%cal Od5d4] aiming for ...d4!} 24. Rg2 d4) 24. Rf2 $1 {[%emt 0:02:42]} Rf8 {[%emt 0:01:10]} 25. exd4 {[%emt 0:01:00]} cxd4 {[%emt 0:00:11]} 26. Rxd4 {[%emt 0:00:25] [#]} Rxe5 $1 {[%emt 0:00:59][%mdl 64] Pin} 27. Rd7 {[%emt 0:01:36]} Re7 {[%emt 0:01:14]} 28. Rxe7 {[%emt 0:02:08]} Qxe7 {[%emt 0:00:20][%mdl 4096] Endgame KQR-KQR} 29. f5 {[%emt 0:00:42]} Qc5 {[%emt 0:36:16][%cal Og7g6]} 30. Qe4 {[%emt 0:01:46]} Rf6 {[%emt 0:00:00]} 31. Qe8+ {[%emt 0:02:33]} Qf8 {[%emt 0:00:00]} 32. Qe5 {[%emt 0:02:53]} (32. Qxf8+ {simplifies} Kxf8 33. Kg2 Kf7 34. Kg3) 32... h6 {[%emt 0:00:00]} 33. a3 {[%emt 0:02:14]} Qf7 {[%emt 0:00:00]} 34. Kh2 {[%emt 0:02:27]} Rc6 {[%emt 0:00:00]} 35. Qg3 {[%emt 0:04:32]} Qf6 {[%emt 0:00:00]} 36. Kh3 {[%emt 0:01:57]} Rc1 {[%emt 0:03:30]} 37. Qg6 $2 {[%emt 0:02:59]} (37. Qb3+ $17 {keeps fighting.} Kh7 38. Qe6) 37... Rh1+ $19 {[%emt 0:00:00]} 38. Kg2 {[%emt 0:00:12] Threatening mate with Re2.} Qxg6+ {[%emt 0:00:00]} ({Worse is} 38... Qxh4 39. Qe8+ Kh7 40. Qg6+ Kh8 41. Qe8+ Kh7 42. Qg6+ Kh8 43. Qe8+ Kh7 $11) (38... Rxh4 39. Qxf6 gxf6 40. Kg3 $15) 39. fxg6 {[%emt 0:00:16]} Rxh4 {[%emt 0:00:00] KR-KR} 40. Kf3 {[%emt 0:00:00]} Rh5 $1 {[%emt 0:00:00] And now ...Rf5+ would win.} 41. Rd2 {[%emt 0:01:17][%cal Rd2d8]} Kf8 {[%emt 0:00:00]} 42. Ke4 {[%emt 0:04:20]} Ke7 {[%emt 0:00:00] Wards off Rd7+} 43. Rf2 {[%emt 0:00:10]} Ke6 {[%emt 0:00:00]} (43... Kd6 $1 $19 {...Rg5 is the strong threat.} 44. Rf7 Re5+ 45. Kf4 Re7) 44. Rf7 $17 {[%emt 0:00:09] [#]} Re5+ {[%emt 0:00:00]} (44... Rb5 $142 $1 45. Rxg7 Kf6 {[%mdl 64] Deflection}) 45. Kf4 {[%emt 0:02:20]} Rb5 $1 {[%emt 0:00:00]} 46. b4 {[%emt 0:01:22][%mdl 8192] Black continues to play with concentration.} (46. Rxg7 $15 Kf6 47. Rc7) 46... axb4 $19 {[%emt 0:00:00]} 47. axb4 {[%emt 0:00:07]} Rxb4+ {[%emt 0:00:00]} 48. Ke3 $2 {[%emt 0:00:36]} (48. Kg3 {was the only defense.}) 48... h5 {[%emt 0:00:00][%cal Bh6h5,Bh5h4,Bh4h3][%mdl 32]} ({Avoid the trap} 48... Rb3+ $2 49. Ke2 $19) 49. Rxg7 {[%emt 0:00:04]} (49. Kf3 $142) 49... Kf6 {[%emt 0:00:00]} 50. Rg8 {[%emt 0:00:13]} b5 {[%emt 0:00:00]} 51. Kf3 {[%emt 0:02:27]} h4 {[%emt 0:00:00] Hoping for ...h3.} 52. Kf2 {[%emt 0:01:02]} Rb3 {[%emt 0:01:56]} 53. Kf1 {[%emt 0:00:32]} b4 {[%emt 0:00:59]} 54. Kf2 {[%emt 0:00:20]} h3 {[%emt 0:01:04]} 55. Kg1 {[%emt 0:00:41]} Kf5 {[%emt 0:02:26]} 56. Kh2 {[%emt 0:00:30]} Kg5 {[%emt 0:00:33] ( -> ...Kh6)} 57. Kh1 {[%emt 0:00:28] [#]} Rb2 $1 {[%emt 0:00:27]} 58. Kg1 {[%emt 0:00:23]} Kf5 $2 {[%emt 0:00:34]} (58... b3 {mates} 59. g7 Kf6 60. Kh1 Rb1+ 61. Kh2 b2 62. Rb8 Kxg7 63. Rb7+ Kg6 64. Rb4 Kg7 65. Rb7+ Kg8 66. Rb5 Kh7 67. Rb7+ Kh6 68. Rb5 Kh7 69. Rb7+ Kh8 70. Rb8+ Kg7 71. Rb6 Kf7 72. Rb8 Kg7) 59. Kh1 $2 {[%emt 0:00:08]} (59. g7 $19 Kf6 60. Rh8 Kxg7 61. Rxh3) 59... Kf6 {[%emt 0:00:05] Black mates.} ({Inferior is} 59... Rg2 60. g7 $11) 60. Rh8 {[%emt 0:00:57]} Kxg6 {[%emt 0:00:15]} 61. Rxh3 {[%emt 0:00:06]} Kf5 {[%emt 0:01:07]} 62. Kg1 {[%emt 0:00:08]} b3 {[%emt 0:00:19][%cal Bb4b3,Bb3b2][%mdl 32]} 63. Kf1 {[%emt 0:00:22]} Rb1+ {[%emt 0:00:12]} 64. Kf2 {[%emt 0:00:55]} b2 {[%emt 0:00:30] Weighted Error Value: White=0.58/Black=0.24 (precise)} 0-1